[Event "Mitropa Cup Women 2019"]
[Site "Radenci"]
[Date "2019.05.27"]
[Round "1.1"]
[White "Motycakova, Monika"]
[Black "Gueci, Tea"]
[Result "0-1"]
[ECO "B33"]
[WhiteElo "2150"]
[BlackElo "2251"]
[Annotator "NA"]
[PlyCount "62"]
[EventDate "2019.05.27"]
[EventType "team-tourn"]
[EventCountry "SLO"]
[SourceTitle "playchess.com"]
[Source "ChessBase"]
[SourceQuality "1"]
[WhiteTeam "Slovakia"]
[BlackTeam "Italy"]
[WhiteTeamCountry "SVK"]
[BlackTeamCountry "ITA"]
[TimeControl "40/5400+30:1800+30"]

1. e4 {[%emt 0:00:00]} c5 {[%emt 0:00:00]} 2. Nf3 {[%emt 0:00:00]} Nc6 {[%emt 0:00:00]} 3. d4 {[%emt 0:00:00]} cxd4 {[%emt 0:00:00]} 4. Nxd4 {[%emt 0:00:02]} Nf6 {[%emt 0:00:00]} 5. Nc3 {[%emt 0:00:11]} e5 {[%emt 0:00:00]} 6. Ndb5 {[%emt 0:00:14]} d6 {[%emt 0:00:05]} 7. Bg5 {[%emt 0:00:18]} a6 {[%emt 0:00:10]} 8. Na3 {[%emt 0:00:07]} b5 {[%emt 0:00:06]} 9. Bxf6 {[%emt 0:00:57]} gxf6 {[%emt 0:00:12]} 10. Nd5 {[%emt 0:00:08]} Bg7 {[%emt 0:00:10]} 11. Bd3 {[%emt 0:01:34]} Ne7 {[%emt 0:00:17]} 12. Nxe7 {[%emt 0:00:56]} Qxe7 {[%emt 0:00:08]} 13. O-O {[%emt 0:05:53]} O-O {[%emt 0:00:11]} 14. c4 {[%emt 0:00:51]} f5 {[%emt 0:00:24]} 15. Qh5 {[%emt 0:00:58]} Rb8 {[%emt 0:01:06]} 16. exf5 {[%emt 0:03:08]} e4 {[%emt 0:00:17]} 17. Rae1 {[%emt 0:01:04]} Bb7 {[%emt 0:00:27]} 18. Qg4 {[%emt 0:02:11]} Rfe8 {[%emt 0:00:32]} 19. cxb5 {[%emt 0:04:27]} Kh8 {[%emt 0:01:35]} 20. bxa6 {[%emt 0:15:56]} Ba8 {[%emt 0:00:59]} 21. b3 {[%emt 0:20:41]} d5 {[%emt 0:01:59]} 22. Nb5 {[%emt 0:11:26]} Rg8 {[%emt 0:09:15]} 23. Qh5 {[%emt 0:12:00]} Rb6 {[%emt 0:07:57]} 24. f6 {[%emt 0:05:14]} Rxf6 {[%emt 0:08:13]} 25. Be2 {[%emt 0:06:03]} Rxa6 {[%emt 0:08:52]} 26. Rc1 {[%emt 0:01:35]} Be5 {[%emt 0:11:45]} 27. a4 {[%emt 0:03:56]} Rag6 {[%emt 0:04:59]} 28. g3 {[%emt 0:00:24]} d4 {[%emt 0:05:27]} 29. Qh3 {[%emt 0:01:39]} Bd5 {[%emt 0:10:05]} 30. Bc4 {[%emt 0:01:08]} Bb7 {[%emt 0:03:41]} 31. Rfe1 {[%emt 0:01:20]} e3 {[%emt 0:04:51]} 0-1

[Event "Mitropa Cup Women 2019"]
[Site "Radenci"]
[Date "2019.05.27"]
[Round "1.2"]
[White "Santeramo, Alessia"]
[Black "Ferkova, Dominika"]
[Result "1-0"]
[ECO "B19"]
[WhiteElo "2074"]
[BlackElo "2037"]
[Annotator "NA"]
[PlyCount "75"]
[EventDate "2019.05.27"]
[EventType "team-tourn"]
[EventCountry "SLO"]
[SourceTitle "playchess.com"]
[Source "ChessBase"]
[SourceQuality "1"]
[WhiteTeam "Italy"]
[BlackTeam "Slovakia"]
[WhiteTeamCountry "ITA"]
[BlackTeamCountry "SVK"]
[TimeControl "40/5400+30:1800+30"]

1. e4 {[%emt 0:00:00]} c6 {[%emt 0:00:00]} 2. d4 {[%emt 0:00:00]} d5 {[%emt 0:00:00]} 3. Nc3 {[%emt 0:00:00]} dxe4 {[%emt 0:00:00]} 4. Nxe4 {[%emt 0:00:00]} Bf5 {[%emt 0:00:00]} 5. Ng3 {[%emt 0:00:24]} Bg6 {[%emt 0:00:06]} 6. h4 {[%emt 0:00:07]} h6 {[%emt 0:00:04]} 7. Nf3 {[%emt 0:00:15]} Nd7 {[%emt 0:00:09]} 8. h5 {[%emt 0:00:09]} Bh7 {[%emt 0:00:05]} 9. Bd3 {[%emt 0:00:04]} Bxd3 {[%emt 0:00:09]} 10. Qxd3 {[%emt 0:00:08]} e6 {[%emt 0:00:06]} 11. Bd2 {[%emt 0:00:15]} Ngf6 {[%emt 0:00:20]} 12. O-O-O {[%emt 0:00:21]} Be7 {[%emt 0:00:07]} 13. Ne4 {[%emt 0:00:21]} Nxe4 {[%emt 0:00:19]} 14. Qxe4 {[%emt 0:00:07]} Nf6 {[%emt 0:00:04]} 15. Qd3 {[%emt 0:00:05]} Qd5 {[%emt 0:02:04]} 16. c4 {[%emt 0:00:20]} Qe4 {[%emt 0:02:03]} 17. Qb3 {[%emt 0:00:14]} c5 {[%emt 0:47:59]} 18. Rde1 {[%emt 0:22:29]} Qc6 {[%emt 0:03:08]} 19. Ne5 {[%emt 0:01:51]} Qc7 {[%emt 0:14:41]} 20. d5 {[%emt 0:24:53]} Bd6 {[%emt 0:05:25]} 21. f4 {[%emt 0:07:51]} O-O-O {[%emt 0:02:58]} 22. Qa3 {[%emt 0:04:25]} a6 {[%emt 0:08:14]} 23. Ba5 {[%emt 0:16:25]} b6 {[%emt 0:00:14]} 24. Bd2 {[%emt 0:00:01]} a5 {[%emt 0:04:35]} 25. dxe6 {[%emt 0:01:20]} fxe6 {[%emt 0:00:06]} 26. Qf3 {[%emt 0:00:59]} Bxe5 {[%emt 0:03:00]} 27. Rxe5 {[%emt 0:00:11]} Rhe8 {[%emt 0:01:31]} 28. Rhe1 {[%emt 0:00:39]} Rd6 {[%emt 0:01:27]} 29. f5 {[%emt 0:02:09]} Qc6 {[%emt 0:01:14]} 30. fxe6 {[%emt 0:01:17]} Qxf3 {[%emt 0:00:35]} 31. gxf3 {[%emt 0:00:05]} Re7 {[%emt 0:01:21]} 32. Bc3 {[%emt 0:00:47]} Nh7 {[%emt 0:02:42]} 33. f4 {[%emt 0:00:23]} Nf6 {[%emt 0:00:19]} 34. Kc2 {[%emt 0:01:11]} Kb7 {[%emt 0:00:32]} 35. f5 {[%emt 0:11:26]} Nxh5 {[%emt 0:00:24]} 36. R5e3 {[%emt 0:00:21]} Nf4 {[%emt 0:00:52]} 37. Be5 {[%emt 0:00:24]} Ng2 {[%emt 0:00:46]} 38. Bxd6 {[%emt 0:00:05]} 1-0

[Event "Mitropa Cup Women 2019"]
[Site "Radenci"]
[Date "2019.05.27"]
[Round "1.3"]
[White "Sankova, Stella"]
[Black "Andolfatto, Maria"]
[Result "0-1"]
[ECO "C43"]
[WhiteElo "2013"]
[BlackElo "2041"]
[Annotator "NA RC"]
[PlyCount "102"]
[EventDate "2019.05.27"]
[EventType "team-tourn"]
[EventCountry "SLO"]
[SourceTitle "playchess.com"]
[Source "ChessBase"]
[SourceQuality "1"]
[WhiteTeam "Slovakia"]
[BlackTeam "Italy"]
[WhiteTeamCountry "SVK"]
[BlackTeamCountry "ITA"]
[TimeControl "40/5400+30:1800+30"]

1. e4 {[%emt 0:00:00]} e5 {[%emt 0:00:00]} 2. Nf3 {[%emt 0:00:00]} Nf6 {[%emt 0:00:00]} 3. d4 {[%emt 0:00:00]} Nxe4 {[%emt 0:00:20]} 4. Bd3 {[%emt 0:00:04]} d5 {[%emt 0:00:28]} 5. Nxe5 {[%emt 0:00:06]} Nd7 {[%emt 0:00:57]} 6. O-O {[%emt 0:00:14]} Nxe5 {[%emt 0:07:34]} 7. dxe5 {[%emt 0:00:27]} Nc5 {[%emt 0:00:13]} 8. Nc3 {[%emt 0:00:12]} c6 {[%emt 0:04:00]} 9. Qf3 {[%emt 0:01:06]} Qh4 {[%emt 0:05:02]} 10. Re1 {[%emt 0:06:49]} Bg4 {[%emt 0:04:50]} 11. Qf4 {[%emt 0:02:20]} Ne6 {[%emt 0:12:47]} 12. Qa4 {[%emt 0:07:03]} Bc5 {[%emt 0:02:59]} 13. Rf1 {[%emt 0:00:09]} O-O-O {[%emt 0:02:19]} 14. Nd1 {[%emt 0:23:05]} Nd4 {[%emt 0:09:30]} 15. Nc3 {[%emt 0:18:43]} Qe7 {[%emt 0:12:03]} 16. Re1 {[%emt 0:07:34]} g5 {[%emt 0:03:38]} 17. Bd2 {[%emt 0:03:12]} b5 {[%emt 0:13:20]} 18. Bxb5 {[%emt 0:09:49]} cxb5 {[%emt 0:01:33]} 19. Nxb5 {[%emt 0:01:23]} Bd7 {[%emt 0:06:24]} 20. Qa6+ {[%emt 0:01:28]} Kb8 {[%emt 0:00:23]} 21. Nxd4 {[%emt 0:03:27]} Bxd4 {[%emt 0:00:49]} 22. Ba5 {[%emt 0:04:24]} Qc5 {[%emt 0:04:36]} 23. b4 {[%emt 0:01:56]} Bxf2+ {[%emt 0:01:26]} 24. Kh1 {[%emt 0:00:04]} Qc6 {[%emt 0:00:09]} 25. Qxc6 {[%emt 0:02:30]} Bxc6 {[%emt 0:00:05]} 26. Rf1 {[%emt 0:03:18]} Bb6 {[%emt 0:00:42]} 27. Bxb6 {[%emt 0:00:50]} axb6 {[%emt 0:00:03]} 28. Rxf7 {[%emt 0:00:25]} Rd7 {[%emt 0:02:01]} 29. Rf6 {[%emt 0:00:47]} Kc7 {[%emt 0:02:36]} 30. a4 {[%emt 0:02:01]} Ra8 {[%emt 0:02:21]} 31. a5 {[%emt 0:00:14]} bxa5 {[%emt 0:00:08]} 32. bxa5 {[%emt 0:00:06]} Re7 {[%emt 0:00:35]} 33. Rf5 {[%emt 0:01:17]} h6 {[%emt 0:00:45]} 34. Kg1 {[%emt 0:00:40]} Bd7 {[%emt 0:00:43]} 35. Rf6 {[%emt 0:00:08]} Re6 {[%emt 0:00:46]} 36. Rxe6 {[%emt 0:00:53]} Bxe6 {[%emt 0:00:04]} 37. Kf2 {[%emt 0:00:03]} Kc6 {[%emt 0:00:40]} 38. Ke3 {[%emt 0:00:19]} Kc5 {[%emt 0:00:47]} 39. a6 {[%emt 0:00:58]} Kb6 {[%emt 0:00:49]} 40. Kd4 {[%emt 0:00:00]} Ra7 {[%emt 0:00:00]} 41. Ra3 {[%emt 0:03:27]} Rxa6 {[%emt 0:19:11]} 42. Rxa6+ {[%emt 0:00:10]} Kxa6 {[%emt 0:00:02]} 43. Kc5 {[%emt 0:00:18]} d4 {[%emt 0:00:35]} 44. g3 {[%emt 0:05:16]} Kb7 {[%emt 0:02:33]} 45. Kd6 {[%emt 0:01:50]} Bf5 {[%emt 0:02:48]} 46. Kd5 {[%emt 0:00:32]} Bxc2 {[%emt 0:00:12]} 47. Kxd4 {[%emt 0:00:05]} Bb3 {[%emt 0:00:35]} 48. e6 {[%emt 0:00:42]} Bxe6 {[%emt 0:00:22]} 49. Ke5 {[%emt 0:00:09]} Bd7 {[%emt 0:00:59]} 50. Kf6 {[%emt 0:01:26]} g4 {[%emt 0:02:08]} 51. Ke5 {[%emt 0:03:00]} Kc6 {[%emt 0:00:35]} 0-1

[Event "Mitropa Cup Women 2019"]
[Site "Radenci"]
[Date "2019.05.27"]
[Round "1.4"]
[White "Raccanello, Marianna"]
[Black "Milcova, Zuzana"]
[Result "1-0"]
[ECO "B01"]
[WhiteElo "2019"]
[BlackElo "2093"]
[Annotator "NA"]
[PlyCount "75"]
[EventDate "2019.05.27"]
[EventType "team-tourn"]
[EventCountry "SLO"]
[SourceTitle "playchess.com"]
[Source "ChessBase"]
[SourceQuality "1"]
[WhiteTeam "Italy"]
[BlackTeam "Slovakia"]
[WhiteTeamCountry "ITA"]
[BlackTeamCountry "SVK"]
[TimeControl "40/5400+30:1800+30"]

1. e4 {[%emt 0:00:00]} d5 {[%emt 0:00:00]} 2. exd5 {[%emt 0:00:00]} Nf6 {[%emt 0:00:00]} 3. d4 {[%emt 0:00:00]} Nxd5 {[%emt 0:00:00]} 4. c4 {[%emt 0:00:00]} Nb6 {[%emt 0:00:00]} 5. Nf3 {[%emt 0:00:04]} Bg4 {[%emt 0:00:20]} 6. c5 {[%emt 0:00:18]} N6d7 {[%emt 0:00:17]} 7. Be2 {[%emt 0:00:34]} e6 {[%emt 0:06:08]} 8. O-O {[%emt 0:02:29]} Be7 {[%emt 0:03:02]} 9. Nc3 {[%emt 0:01:06]} O-O {[%emt 0:03:31]} 10. b4 {[%emt 0:04:11]} Nc6 {[%emt 0:17:15]} 11. b5 {[%emt 0:10:49]} Na5 {[%emt 0:05:27]} 12. Bf4 {[%emt 0:03:54]} b6 {[%emt 0:12:49]} 13. h3 {[%emt 0:05:44]} Bf5 {[%emt 0:08:26]} 14. Qa4 {[%emt 0:03:07]} h6 {[%emt 0:07:42]} 15. Rfd1 {[%emt 0:03:54]} Nf6 {[%emt 0:13:53]} 16. Ne5 {[%emt 0:02:10]} Nd5 {[%emt 0:09:19]} 17. Nxd5 {[%emt 0:07:16]} exd5 {[%emt 0:01:00]} 18. Rac1 {[%emt 0:04:53]} f6 {[%emt 0:04:44]} 19. Nf3 {[%emt 0:03:05]} Nb7 {[%emt 0:01:00]} 20. cxb6 {[%emt 0:02:39]} axb6 {[%emt 0:00:54]} 21. Qb3 {[%emt 0:00:07]} Ra3 {[%emt 0:03:10]} 22. Bxc7 {[%emt 0:00:08]} Qd7 {[%emt 0:00:03]} 23. Qb2 {[%emt 0:00:26]} Rfa8 {[%emt 0:00:11]} 24. Rd2 {[%emt 0:01:29]} R8a4 {[%emt 0:01:33]} 25. Bxb6 {[%emt 0:02:13]} Bb4 {[%emt 0:00:21]} 26. Rc7 {[%emt 0:05:04]} Qe6 {[%emt 0:01:09]} 27. Rc6 {[%emt 0:04:46]} Nd6 {[%emt 0:00:20]} 28. Bc5 {[%emt 0:01:56]} Bxd2 {[%emt 0:00:44]} 29. Bxa3 {[%emt 0:00:25]} Qxe2 {[%emt 0:00:16]} 30. Bxd6 {[%emt 0:00:32]} Qd1+ {[%emt 0:00:41]} 31. Kh2 {[%emt 0:00:08]} Ba5 {[%emt 0:00:42]} 32. b6 {[%emt 0:01:32]} Bxb6 {[%emt 0:00:15]} 33. Rxb6 {[%emt 0:00:16]} Rc4 {[%emt 0:00:08]} 34. Bf4 {[%emt 0:01:35]} Be4 {[%emt 0:00:28]} 35. Nd2 {[%emt 0:04:23]} Rc2 {[%emt 0:00:24]} 36. Qb4 {[%emt 0:00:05]} Rxa2 {[%emt 0:01:06]} 37. Nxe4 {[%emt 0:00:15]} dxe4 {[%emt 0:00:03]} 38. Qc4+ {[%emt 0:00:08]} 1-0

[Event "Mitropa Cup Women 2019"]
[Site "Radenci"]
[Date "2019.05.27"]
[Round "1.5"]
[White "Pychova, Nela"]
[Black "Georgescu, Lena"]
[Result "1-0"]
[ECO "A11"]
[WhiteElo "2174"]
[BlackElo "2191"]
[Annotator "NA"]
[PlyCount "59"]
[EventDate "2019.05.27"]
[EventType "team-tourn"]
[EventCountry "SLO"]
[SourceTitle "playchess.com"]
[Source "ChessBase"]
[SourceQuality "1"]
[WhiteTeam "Czech Republic"]
[BlackTeam "Switzerland"]
[WhiteTeamCountry "CZE"]
[BlackTeamCountry "SUI"]
[TimeControl "40/5400+30:1800+30"]

1. Nf3 {[%emt 0:00:00]} Nf6 {[%emt 0:00:00]} 2. g3 {[%emt 0:00:00]} d5 {[%emt 0:00:00]} 3. Bg2 {[%emt 0:00:00]} c6 {[%emt 0:00:00]} 4. O-O {[%emt 0:00:04]} Bg4 {[%emt 0:00:12]} 5. c4 {[%emt 0:00:14]} e6 {[%emt 0:00:35]} 6. cxd5 {[%emt 0:00:15]} exd5 {[%emt 0:01:18]} 7. Qb3 {[%emt 0:00:22]} Qb6 {[%emt 0:02:01]} 8. Qc2 {[%emt 0:00:27]} Nbd7 {[%emt 0:01:26]} 9. d3 {[%emt 0:01:26]} Qc5 {[%emt 0:04:40]} 10. Qd1 {[%emt 0:01:46]} Bxf3 {[%emt 0:06:40]} 11. Bxf3 {[%emt 0:00:15]} d4 {[%emt 0:01:21]} 12. Nd2 {[%emt 0:03:13]} Ne5 {[%emt 0:10:42]} 13. Bg2 {[%emt 0:01:14]} Be7 {[%emt 0:01:28]} 14. Qa4 {[%emt 0:08:08]} b5 {[%emt 0:20:12]} 15. Qa6 {[%emt 0:09:50]} O-O {[%emt 0:07:14]} 16. Nb3 {[%emt 0:03:08]} Qd6 {[%emt 0:01:13]} 17. Bf4 {[%emt 0:11:54]} Nd5 {[%emt 0:07:45]} 18. Bxe5 {[%emt 0:04:31]} Qxe5 {[%emt 0:00:03]} 19. Qxc6 {[%emt 0:00:26]} Nb4 {[%emt 0:00:47]} 20. Qe4 {[%emt 0:01:25]} Qxe4 {[%emt 0:03:27]} 21. Bxe4 {[%emt 0:00:11]} Rac8 {[%emt 0:00:45]} 22. a3 {[%emt 0:03:58]} Nc2 {[%emt 0:01:31]} 23. Rac1 {[%emt 0:00:17]} Bg5 {[%emt 0:01:39]} 24. f4 {[%emt 0:21:58]} Bf6 {[%emt 0:03:57]} 25. Bf5 {[%emt 0:01:28]} Rc7 {[%emt 0:06:56]} 26. Na1 {[%emt 0:00:25]} g6 {[%emt 0:00:27]} 27. Bh3 {[%emt 0:00:27]} Re8 {[%emt 0:00:47]} 28. Rxc2 {[%emt 0:01:04]} Rxc2 {[%emt 0:00:06]} 29. Nxc2 {[%emt 0:00:07]} Rxe2 {[%emt 0:00:04]} 30. Rf2 {[%emt 0:00:23]} 1-0

[Event "Mitropa Cup Women 2019"]
[Site "Radenci"]
[Date "2019.05.27"]
[Round "1.6"]
[White "Hund, Barbara"]
[Black "Nemcova, Karin"]
[Result "1/2-1/2"]
[ECO "B23"]
[WhiteElo "2127"]
[BlackElo "1947"]
[Annotator "NA"]
[PlyCount "72"]
[EventDate "2019.05.27"]
[EventType "team-tourn"]
[EventCountry "SLO"]
[SourceTitle "playchess.com"]
[Source "ChessBase"]
[SourceQuality "1"]
[WhiteTeam "Switzerland"]
[BlackTeam "Czech Republic"]
[WhiteTeamCountry "SUI"]
[BlackTeamCountry "CZE"]
[TimeControl "40/5400+30:1800+30"]

1. e4 {[%emt 0:00:00]} c5 {[%emt 0:00:00]} 2. Nc3 {[%emt 0:00:03]} Nc6 {[%emt 0:00:00]} 3. f4 {[%emt 0:00:18]} g6 {[%emt 0:00:08]} 4. Nf3 {[%emt 0:00:15]} Bg7 {[%emt 0:00:10]} 5. Bb5 {[%emt 0:00:20]} Nd4 {[%emt 0:00:16]} 6. a4 {[%emt 0:00:20]} a6 {[%emt 0:02:51]} 7. Bc4 {[%emt 0:01:54]} e6 {[%emt 0:01:08]} 8. d3 {[%emt 0:04:39]} Ne7 {[%emt 0:01:30]} 9. e5 {[%emt 0:02:21]} d5 {[%emt 0:05:25]} 10. exd6 {[%emt 0:02:12]} Nef5 {[%emt 0:01:39]} 11. Ne4 {[%emt 0:04:16]} Nxd6 {[%emt 0:08:51]} 12. c3 {[%emt 0:14:50]} Nxf3+ {[%emt 0:10:40]} 13. Qxf3 {[%emt 0:00:15]} Qc7 {[%emt 0:08:45]} 14. a5 {[%emt 0:08:52]} O-O {[%emt 0:10:08]} 15. Nxd6 {[%emt 0:10:38]} Qxd6 {[%emt 0:00:17]} 16. Be3 {[%emt 0:02:00]} Bd7 {[%emt 0:06:12]} 17. O-O {[%emt 0:03:04]} Rab8 {[%emt 0:00:41]} 18. Qf2 {[%emt 0:04:02]} Rfc8 {[%emt 0:01:14]} 19. Rae1 {[%emt 0:10:09]} b5 {[%emt 0:08:33]} 20. axb6 {[%emt 0:01:03]} Qxb6 {[%emt 0:00:24]} 21. Re2 {[%emt 0:04:12]} a5 {[%emt 0:06:44]} 22. Qh4 {[%emt 0:02:33]} Bb5 {[%emt 0:04:14]} 23. f5 {[%emt 0:06:48]} exf5 {[%emt 0:07:08]} 24. Bh6 {[%emt 0:07:56]} Bxc4 {[%emt 0:04:13]} 25. dxc4 {[%emt 0:00:12]} Re8 {[%emt 0:02:41]} 26. Rfe1 {[%emt 0:01:00]} Rxe2 {[%emt 0:00:41]} 27. Rxe2 {[%emt 0:00:06]} Bxh6 {[%emt 0:00:39]} 28. Qxh6 {[%emt 0:00:06]} Qd6 {[%emt 0:00:28]} 29. Qe3 {[%emt 0:01:54]} a4 {[%emt 0:03:04]} 30. g3 {[%emt 0:02:36]} Kg7 {[%emt 0:01:25]} 31. h4 {[%emt 0:00:45]} h5 {[%emt 0:00:21]} 32. Kf2 {[%emt 0:00:39]} Rd8 {[%emt 0:00:36]} 33. Qf3 {[%emt 0:01:46]} Qd7 {[%emt 0:01:26]} 34. Qe3 {[%emt 0:00:29]} Qd6 {[%emt 0:00:30]} 35. Qf3 {[%emt 0:00:24]} Qd3 {[%emt 0:01:06]} 36. Qf4 {[%emt 0:00:40]} Qd6 {[%emt 0:00:38]} 1/2-1/2

[Event "Mitropa Cup Women 2019"]
[Site "Radenci"]
[Date "2019.05.27"]
[Round "1.7"]
[White "Koubova, Anna Marie"]
[Black "Hund, Sarah"]
[Result "1/2-1/2"]
[ECO "E11"]
[WhiteElo "1975"]
[BlackElo "2016"]
[Annotator "NA RC"]
[PlyCount "108"]
[EventDate "2019.05.27"]
[EventType "team-tourn"]
[EventCountry "SLO"]
[SourceTitle "playchess.com"]
[Source "ChessBase"]
[SourceQuality "1"]
[WhiteTeam "Czech Republic"]
[BlackTeam "Switzerland"]
[WhiteTeamCountry "CZE"]
[BlackTeamCountry "SUI"]
[TimeControl "40/5400+30:1800+30"]

1. d4 {[%emt 0:00:00]} Nf6 {[%emt 0:00:00]} 2. c4 {[%emt 0:00:00]} e6 {[%emt 0:00:00]} 3. Nf3 {[%emt 0:00:00]} Bb4+ {[%emt 0:00:06]} 4. Bd2 {[%emt 0:00:10]} Qe7 {[%emt 0:00:30]} 5. g3 {[%emt 0:00:15]} Bxd2+ {[%emt 0:00:42]} 6. Qxd2 {[%emt 0:00:30]} Nc6 {[%emt 0:00:40]} 7. Nc3 {[%emt 0:00:26]} d5 {[%emt 0:00:29]} 8. Bg2 {[%emt 0:04:02]} dxc4 {[%emt 0:01:29]} 9. e4 {[%emt 0:00:44]} O-O {[%emt 0:03:17]} 10. Qe2 {[%emt 0:04:13]} e5 {[%emt 0:06:56]} 11. d5 {[%emt 0:05:40]} Nd4 {[%emt 0:02:48]} 12. Qd2 {[%emt 0:03:33]} Nxf3+ {[%emt 0:06:08]} 13. Bxf3 {[%emt 0:00:06]} Rd8 {[%emt 0:02:54]} 14. O-O {[%emt 0:02:22]} c6 {[%emt 0:06:01]} 15. Qe2 {[%emt 0:01:03]} Bh3 {[%emt 0:08:14]} 16. Rfc1 {[%emt 0:01:51]} b5 {[%emt 0:07:50]} 17. dxc6 {[%emt 0:03:27]} Qc5 {[%emt 0:01:51]} 18. a4 {[%emt 0:18:32]} a6 {[%emt 0:04:22]} 19. c7 {[%emt 0:03:28]} Rdc8 {[%emt 0:06:17]} 20. Nd5 {[%emt 0:06:17]} Ne8 {[%emt 0:05:33]} 21. Qe3 {[%emt 0:03:53]} Qxe3 {[%emt 0:10:38]} 22. fxe3 {[%emt 0:00:11]} Nxc7 {[%emt 0:02:37]} 23. Nb6 {[%emt 0:04:36]} Kf8 {[%emt 0:03:39]} 24. axb5 {[%emt 0:05:11]} axb5 {[%emt 0:00:21]} 25. Rxa8 {[%emt 0:00:19]} Nxa8 {[%emt 0:03:09]} 26. Nxc8 {[%emt 0:00:12]} Bxc8 {[%emt 0:00:11]} 27. Rd1 {[%emt 0:02:44]} Ke7 {[%emt 0:01:55]} 28. Rd5 {[%emt 0:01:56]} Nc7 {[%emt 0:00:32]} 29. Rxe5+ {[%emt 0:00:34]} Kd6 {[%emt 0:01:23]} 30. Rh5 {[%emt 0:00:13]} Be6 {[%emt 0:04:16]} 31. Rxh7 {[%emt 0:07:00]} g6 {[%emt 0:03:11]} 32. Kf1 {[%emt 0:07:18]} Na6 {[%emt 0:03:43]} 33. Rh8 {[%emt 0:03:31]} b4 {[%emt 0:01:21]} 34. Rd8+ {[%emt 0:04:46]} Kc5 {[%emt 0:01:13]} 35. Ke1 {[%emt 0:02:57]} Kb5 {[%emt 0:02:39]} 36. Kd2 {[%emt 0:01:57]} Nc5 {[%emt 0:00:18]} 37. Rb8+ {[%emt 0:00:50]} Ka4 {[%emt 0:00:40]} 38. Bd1+ {[%emt 0:00:28]} Ka5 {[%emt 0:00:31]} 39. Bc2 {[%emt 0:01:16]} Nd7 {[%emt 0:00:28]} 40. Ra8+ {[%emt 0:00:00]} Kb6 {[%emt 0:00:00]} 41. Ba4 {[%emt 0:10:47]} Nc5 {[%emt 0:09:31]} 42. Rb8+ {[%emt 0:04:09]} Nb7 {[%emt 0:01:59]} 43. Bc2 {[%emt 0:02:55]} Kc7 {[%emt 0:00:58]} 44. Rf8 {[%emt 0:00:41]} Nc5 {[%emt 0:01:15]} 45. h4 {[%emt 0:01:38]} Nd7 {[%emt 0:01:53]} 46. Ra8 {[%emt 0:02:00]} Ne5 {[%emt 0:01:55]} 47. Ra5 {[%emt 0:04:04]} c3+ {[%emt 0:03:39]} 48. Kc1 {[%emt 0:00:12]} Nc4 {[%emt 0:01:28]} 49. Rc5+ {[%emt 0:00:33]} Kd6 {[%emt 0:00:57]} 50. Rxc4 {[%emt 0:00:19]} Bxc4 {[%emt 0:01:24]} 51. bxc3 {[%emt 0:06:28]} bxc3 {[%emt 0:00:17]} 52. Bd1 {[%emt 0:01:07]} Bd3 {[%emt 0:03:30]} 53. Bc2 {[%emt 0:00:47]} Bc4 {[%emt 0:00:11]} 54. Bd1 {[%emt 0:00:13]} Bd3 {[%emt 0:00:06]} 1/2-1/2

[Event "Mitropa Cup Women 2019"]
[Site "Radenci"]
[Date "2019.05.27"]
[Round "1.8"]
[White "Pellicoro, Nathalie"]
[Black "Pribylova, Sofie"]
[Result "0-1"]
[ECO "B24"]
[WhiteElo "1893"]
[BlackElo "2069"]
[Annotator "NA"]
[PlyCount "76"]
[EventDate "2019.05.27"]
[EventType "team-tourn"]
[EventCountry "SLO"]
[SourceTitle "playchess.com"]
[Source "ChessBase"]
[SourceQuality "1"]
[WhiteTeam "Switzerland"]
[BlackTeam "Czech Republic"]
[WhiteTeamCountry "SUI"]
[BlackTeamCountry "CZE"]
[TimeControl "40/5400+30:1800+30"]

1. e4 {[%emt 0:00:00]} c5 {[%emt 0:00:00]} 2. Nc3 {[%emt 0:00:00]} Nc6 {[%emt 0:00:00]} 3. f4 {[%emt 0:00:04]} g6 {[%emt 0:00:11]} 4. Nf3 {[%emt 0:00:11]} Bg7 {[%emt 0:00:19]} 5. g3 {[%emt 0:00:17]} e6 {[%emt 0:02:44]} 6. Bg2 {[%emt 0:00:30]} Nge7 {[%emt 0:00:31]} 7. O-O {[%emt 0:00:49]} O-O {[%emt 0:00:47]} 8. d3 {[%emt 0:00:37]} b6 {[%emt 0:07:56]} 9. Be3 {[%emt 0:03:48]} Bb7 {[%emt 0:02:03]} 10. d4 {[%emt 0:07:02]} cxd4 {[%emt 0:09:57]} 11. Nxd4 {[%emt 0:00:22]} d5 {[%emt 0:04:00]} 12. e5 {[%emt 0:16:01]} Nxd4 {[%emt 0:11:35]} 13. Bxd4 {[%emt 0:00:32]} Nc6 {[%emt 0:00:52]} 14. Bf2 {[%emt 0:06:46]} Rc8 {[%emt 0:06:57]} 15. Re1 {[%emt 0:03:55]} Qd7 {[%emt 0:03:54]} 16. Ne2 {[%emt 0:06:39]} Rfd8 {[%emt 0:06:34]} 17. c3 {[%emt 0:00:30]} Bf8 {[%emt 0:03:05]} 18. Nd4 {[%emt 0:02:23]} a6 {[%emt 0:04:13]} 19. Rc1 {[%emt 0:02:54]} b5 {[%emt 0:02:04]} 20. Nb3 {[%emt 0:03:23]} b4 {[%emt 0:03:56]} 21. Nc5 {[%emt 0:02:29]} Bxc5 {[%emt 0:10:52]} 22. Bxc5 {[%emt 0:00:09]} bxc3 {[%emt 0:00:37]} 23. Rxc3 {[%emt 0:01:57]} h5 {[%emt 0:06:10]} 24. h3 {[%emt 0:05:36]} Ne7 {[%emt 0:01:10]} 25. g4 {[%emt 0:03:04]} hxg4 {[%emt 0:00:43]} 26. hxg4 {[%emt 0:01:02]} d4 {[%emt 0:01:14]} 27. Bxb7 {[%emt 0:09:12]} Qxb7 {[%emt 0:00:49]} 28. Rb3 {[%emt 0:01:50]} Qd7 {[%emt 0:00:44]} 29. Bb6 {[%emt 0:00:43]} d3 {[%emt 0:01:36]} 30. Re3 {[%emt 0:07:35]} d2 {[%emt 0:02:13]} 31. Rec3 {[%emt 0:01:04]} Nd5 {[%emt 0:01:35]} 32. Bxd8 {[%emt 0:02:33]} Nxc3 {[%emt 0:02:25]} 33. bxc3 {[%emt 0:02:48]} Rxd8 {[%emt 0:00:23]} 34. Rb2 {[%emt 0:02:06]} Qa7+ {[%emt 0:00:48]} 35. Kg2 {[%emt 0:00:32]} Qe3 {[%emt 0:00:27]} 36. f5 {[%emt 0:01:00]} exf5 {[%emt 0:01:33]} 37. gxf5 {[%emt 0:00:21]} Qe4+ {[%emt 0:00:24]} 38. Kg1 {[%emt 0:00:28]} Qe1+ {[%emt 0:00:07]} 0-1